[Event "Geneve Chess Masters 2013"]
[Site "Geneve"]
[Date "2013.06.26"]
[Round "1.4"]
[White "Edouard, Romain"]
[Black "Nakamura, Hikaru"]
[Result "0-1"]
[ECO "A88"]
[WhiteElo "2666"]
[BlackElo "2784"]
[Annotator "Robot 3"]
[PlyCount "70"]
[EventDate "2013.??.??"]
[EventCountry "SUI"]
[TimeControl "1500+10"]

1. d4 {[%emt 0:21:07]} f5 {[%emt 0:21:11]} 2. g3 {[%emt 0:00:09]} Nf6 {[%emt 0:
00:09]} 3. Bg2 {[%emt 0:00:09]} g6 {[%emt 0:00:09]} 4. Nf3 d6 5. O-O {[%emt 0:
00:21]} Bg7 {[%emt 0:00:17]} 6. c4 {[%emt 0:00:09]} c6 {[%emt 0:00:08]} 7. Nc3
{[%emt 0:00:10]} O-O {[%emt 0:00:10]} 8. b3 {[%emt 0:00:09]} Qa5 {[%emt 0:00:
15]} 9. Qd2 {[%emt 0:00:18]} e5 {[%emt 0:00:15]} 10. Rd1 {[%emt 0:00:32]} Re8 {
[%emt 0:00:14]} 11. a4 {[%emt 0:00:25]} Qc7 {[%emt 0:00:16]} 12. dxe5 {[%emt 0:
00:12]} dxe5 {[%emt 0:00:09]} 13. Ba3 {[%emt 0:00:19]} e4 {[%emt 0:00:14]} 14.
Bd6 {[%emt 0:00:13]} Qd8 {[%emt 0:00:08]} 15. Ne5 {[%emt 0:00:31]} Nbd7 {[%emt
0:00:15]} 16. Nxd7 {[%emt 0:00:16]} Qxd7 {[%emt 0:00:14]} 17. c5 {[%emt 0:00:
17]} e3 {[%emt 0:00:11]} 18. fxe3 {[%emt 0:00:11]} a5 {[%emt 0:00:19]} 19. Rab1
{[%emt 0:00:38]} Qe6 {[%emt 0:00:11]} 20. Bf4 {[%emt 0:00:14]} Bf8 {[%emt 0:00:
15]} 21. Bd6 {[%emt 0:00:18]} Bh6 {[%emt 0:00:12]} 22. Bf4 {[%emt 0:00:27]} Bf8
{[%emt 0:00:09]} 23. Qd4 {[%emt 0:00:12]} Bg7 {[%emt 0:00:09]} 24. Qc4 {[%emt
0:00:37]} Qxc4 {[%emt 0:00:41]} 25. bxc4 {[%emt 0:00:09]} Bf8 {[%emt 0:00:09]}
26. Bd6 {[%emt 0:00:15]} Rxe3 {[%emt 0:00:10]} 27. Rd3 {[%emt 0:00:12]} Re8 {
[%emt 0:00:10]} 28. Bf3 {[%emt 0:00:16]} Nd7 {[%emt 0:00:13]} 29. Bxf8 {[%emt
0:00:42]} Kxf8 {[%emt 0:00:16]} 30. Kf2 {[%emt 0:00:15]} Nxc5 {[%emt 0:00:10]}
31. Rdd1 {[%emt 0:00:12]} Be6 {[%emt 0:00:09]} 32. Ke3 {[%emt 0:00:13]} Rad8 {
[%emt 0:00:13]} 33. Rxd8 {[%emt 0:00:16]} Rxd8 {[%emt 0:00:09]} 34. Kf4 {[%emt
0:00:11]} Bxc4 {[%emt 0:00:10]} 35. e4 {[%emt 0:00:10]} Rd3 {[%emt 0:00:12]}
0-1

[Event "Geneve Chess Masters 2013"]
[Site "Geneve"]
[Date "2013.06.26"]
[Round "1.2"]
[White "Polgar, Judit"]
[Black "Pelletier, Yannick"]
[Result "0-1"]
[ECO "A05"]
[WhiteElo "2696"]
[BlackElo "2574"]
[Annotator "Robot 3"]
[PlyCount "66"]
[EventDate "2013.??.??"]
[EventCountry "SUI"]
[TimeControl "1500+10"]

1. Nf3 {[%emt 0:00:00]} Nf6 {[%emt 0:00:01]} 2. g3 {[%emt 0:00:03]} d5 {[%emt
0:00:04]} 3. Bg2 {[%emt 0:00:02]} c6 {[%emt 0:00:01]} 4. d3 {[%emt 0:00:09]}
Bg4 {[%emt 0:00:08]} 5. Nbd2 {[%emt 0:00:27]} Nbd7 {[%emt 0:00:04]} 6. O-O {
[%emt 0:00:44]} e5 {[%emt 0:00:09]} 7. h3 {[%emt 0:00:11]} Bh5 {[%emt 0:00:03]}
8. Nh4 {[%emt 0:00:29]} Bc5 {[%emt 0:00:39]} 9. c4 {[%emt 0:01:21]} O-O {[%emt
0:00:28]} 10. cxd5 {[%emt 0:00:56]} cxd5 {[%emt 0:01:49]} 11. Nb3 {[%emt 0:00:
19]} Bb6 {[%emt 0:01:19]} 12. Bd2 {[%emt 0:04:26]} a5 {[%emt 0:02:47]} 13. a4 {
[%emt 0:01:41]} Re8 {[%emt 0:00:22]} 14. Rc1 {[%emt 0:01:14]} Nf8 {[%emt 0:05:
28]} 15. Nf5 {[%emt 0:03:54]} Ne6 {[%emt 0:00:43]} 16. Qe1 {[%emt 0:01:05]} Bg6
{[%emt 0:02:37]} 17. Nh4 {[%emt 0:00:30]} e4 {[%emt 0:01:52]} 18. Nxg6 {[%emt
0:00:32]} hxg6 {[%emt 0:00:01]} 19. Rc3 {[%emt 0:01:51]} Qd7 {[%emt 0:02:26]}
20. Qa1 {[%emt 0:02:26]} Nd4 {[%emt 0:00:01]} 21. Nxd4 {[%emt 0:00:08]} Bxd4 {
[%emt 0:00:02]} 22. Rb3 {[%emt 0:00:11]} e3 {[%emt 0:00:12]} 23. Be1 {[%emt 0:
00:19]} exf2+ {[%emt 0:01:26]} 24. Bxf2 {[%emt 0:00:01]} Bxf2+ {[%emt 0:00:26]}
25. Rxf2 {[%emt 0:00:01]} Re3 {[%emt 0:00:08]} 26. g4 {[%emt 0:00:39]} Rae8 {
[%emt 0:00:20]} 27. Qd1 {[%emt 0:02:16]} Qxa4 {[%emt 0:02:18]} 28. g5 {[%emt 0:
00:01]} Ne4 {[%emt 0:02:08]} 29. Bxe4 {[%emt 0:02:31]} dxe4 {[%emt 0:00:03]}
30. Rxf7 {[%emt 0:00:29]} Qd4 {[%emt 0:00:26]} 31. Rf2 {[%emt 0:00:05]} Rg3+ {
[%emt 0:00:36]} 32. Kf1 {[%emt 0:00:00]} Rxh3 {[%emt 0:00:05]} 33. Qc2 {[%emt
0:00:50]} e3 {[%emt 0:00:46]} 0-1

[Event "Geneve Chess Masters 2013"]
[Site "Geneve"]
[Date "2013.06.26"]
[Round "1"]
[White "Pelletier, Yannick"]
[Black "Polgar, Judit"]
[Result "1-0"]
[ECO "A30"]
[WhiteElo "2574"]
[BlackElo "2696"]
[Annotator "Robot 3"]
[PlyCount "107"]
[EventDate "2013.??.??"]
[EventCountry "SUI"]
[TimeControl "1500+10"]

1. c4 {[%emt 0:00:00]} c5 {[%emt 0:00:08]} 2. Nf3 {[%emt 0:00:00]} Nc6 {[%emt
0:00:19]} 3. d4 {[%emt 0:00:41]} cxd4 {[%emt 0:00:04]} 4. Nxd4 {[%emt 0:00:02]}
Qb6 {[%emt 0:00:08]} 5. Nb3 {[%emt 0:00:21]} a5 {[%emt 0:00:24]} 6. Nc3 {[%emt
0:01:44]} e6 {[%emt 0:00:14]} 7. Be3 {[%emt 0:01:16]} Qd8 {[%emt 0:00:28]} 8.
Na4 {[%emt 0:03:18]} Bb4+ {[%emt 0:01:35]} 9. Nd2 {[%emt 0:00:05]} Ne5 {[%emt
0:02:10]} 10. Rc1 {[%emt 0:01:22]} Nf6 {[%emt 0:02:51]} 11. a3 {[%emt 0:00:27]}
Bd6 {[%emt 0:00:48]} 12. Nf3 {[%emt 0:05:04]} Bc7 {[%emt 0:02:06]} 13. Nxe5 {
[%emt 0:00:45]} Bxe5 {[%emt 0:00:02]} 14. Bb6 {[%emt 0:01:27]} Qe7 {[%emt 0:02:
15]} 15. g3 {[%emt 0:01:20]} h5 {[%emt 0:01:14]} 16. h4 {[%emt 0:00:23]} Ra6 {
[%emt 0:00:23]} 17. Bg2 {[%emt 0:00:59]} Ng4 {[%emt 0:01:19]} 18. Qb3 {[%emt 0:
01:03]} Qf6 {[%emt 0:01:40]} 19. Rd1 {[%emt 0:00:47]} Bc7 {[%emt 0:02:43]} 20.
O-O {[%emt 0:00:45]} Qd8 {[%emt 0:00:47]} 21. Bxc7 {[%emt 0:00:21]} Qxc7 {
[%emt 0:00:02]} 22. c5 {[%emt 0:00:04]} g5 {[%emt 0:00:51]} 23. hxg5 {[%emt 0:
00:32]} h4 {[%emt 0:00:01]} 24. Qf3 {[%emt 0:00:36]} Ne5 {[%emt 0:00:34]} 25.
Qf6 {[%emt 0:00:23]} Rg8 {[%emt 0:01:19]} 26. Rd4 {[%emt 0:01:47]} hxg3 {[%emt
0:00:55]} 27. fxg3 {[%emt 0:00:02]} Rf8 {[%emt 0:00:03]} 28. Rfd1 {[%emt 0:00:
42]} Ng6 {[%emt 0:00:41]} 29. Rd6 {[%emt 0:01:28]} Rxd6 {[%emt 0:00:02]} 30.
cxd6 {[%emt 0:00:19]} Qc2 {[%emt 0:00:01]} 31. Nc3 {[%emt 0:00:39]} Qxb2 {
[%emt 0:00:27]} 32. Be4 {[%emt 0:00:26]} Qb6+ {[%emt 0:00:06]} 33. Kg2 {[%emt
0:00:03]} Qd8 {[%emt 0:00:10]} 34. Nb5 {[%emt 0:00:59]} Qxf6 {[%emt 0:00:02]}
35. gxf6 {[%emt 0:00:01]} Ne5 {[%emt 0:00:11]} 36. Rc1 {[%emt 0:00:02]} Nc6 {
[%emt 0:00:13]} 37. g4 {[%emt 0:00:08]} b6 {[%emt 0:00:18]} 38. Kg3 {[%emt 0:
00:00]} Bb7 {[%emt 0:00:08]} 39. Rb1 {[%emt 0:00:12]} Rg8 {[%emt 0:00:40]} 40.
Kf4 {[%emt 0:00:35]} Kd8 {[%emt 0:00:11]} 41. Nc3 {[%emt 0:00:03]} Rh8 {[%emt
0:00:45]} 42. Rxb6 {[%emt 0:00:03]} Kc8 {[%emt 0:00:01]} 43. Na4 {[%emt 0:00:
10]} Rh6 {[%emt 0:00:09]} 44. Nc5 {[%emt 0:00:18]} Ba8 {[%emt 0:00:27]} 45. Kg5
{[%emt 0:00:01]} Rh2 {[%emt 0:00:11]} 46. Bf3 {[%emt 0:00:02]} Rh8 {[%emt 0:00:
34]} 47. Nd3 {[%emt 0:00:03]} Rg8+ {[%emt 0:00:08]} 48. Kf4 {[%emt 0:00:01]}
Rg6 {[%emt 0:00:36]} 49. Bxc6 {[%emt 0:00:13]} Bxc6 {[%emt 0:00:06]} 50. g5 {
[%emt 0:00:02]} Rg8 {[%emt 0:00:16]} 51. Ne5 {[%emt 0:00:01]} Rf8 {[%emt 0:00:
01]} 52. g6 {[%emt 0:00:12]} fxg6 {[%emt 0:00:04]} 53. Kg5 {[%emt 0:00:08]} Be4
{[%emt 0:00:04]} 54. f7 {[%emt 0:00:26]} 1-0

[Event "Geneve Chess Masters 2013"]
[Site "Geneve"]
[Date "2013.06.26"]
[Round "1.2"]
[White "Nakamura, Hikaru"]
[Black "Edouard, Romain"]
[Result "1/2-1/2"]
[ECO "C00"]
[WhiteElo "2784"]
[BlackElo "2666"]
[Annotator "Robot 3"]
[PlyCount "177"]
[EventDate "2013.??.??"]
[EventCountry "SUI"]
[TimeControl "1500+10"]

1. e4 {[%emt 0:00:00]} e6 {[%emt 0:00:00]} 2. d3 {[%emt 0:00:00]} d5 {[%emt 0:
00:18]} 3. Nd2 {[%emt 0:00:01]} c5 {[%emt 0:00:29]} 4. g3 {[%emt 0:00:01]} Bd6
{[%emt 0:00:04]} 5. Bg2 {[%emt 0:00:02]} Ne7 {[%emt 0:00:01]} 6. f4 {[%emt 0:
00:11]} O-O {[%emt 0:00:18]} 7. Ngf3 {[%emt 0:00:02]} Nbc6 {[%emt 0:00:04]} 8.
O-O {[%emt 0:00:10]} b5 {[%emt 0:00:57]} 9. Re1 {[%emt 0:00:15]} c4 {[%emt 0:
00:35]} 10. d4 {[%emt 0:00:20]} dxe4 {[%emt 0:00:18]} 11. Nxe4 {[%emt 0:00:04]}
Bb7 {[%emt 0:01:05]} 12. c3 {[%emt 0:00:02]} Nd5 {[%emt 0:00:41]} 13. b3 {
[%emt 0:01:11]} Be7 {[%emt 0:03:15]} 14. bxc4 {[%emt 0:00:09]} bxc4 {[%emt 0:
00:01]} 15. Qc2 {[%emt 0:00:05]} h6 {[%emt 0:00:11]} 16. Ned2 {[%emt 0:01:17]}
Rc8 {[%emt 0:01:52]} 17. Rb1 {[%emt 0:00:01]} Qc7 {[%emt 0:01:00]} 18. Nf1 {
[%emt 0:00:19]} Rfd8 {[%emt 0:00:57]} 19. Ne3 {[%emt 0:00:12]} Nxe3 {[%emt 0:
00:14]} 20. Bxe3 {[%emt 0:00:01]} Bf8 {[%emt 0:03:12]} 21. f5 {[%emt 0:03:27]}
exf5 {[%emt 0:00:20]} 22. Bf4 {[%emt 0:00:01]} Bd6 {[%emt 0:00:27]} 23. Ne5 {
[%emt 0:00:01]} Ba8 {[%emt 0:04:35]} 24. Qxf5 {[%emt 0:01:29]} Nxe5 {[%emt 0:
01:32]} 25. Bxe5 {[%emt 0:00:07]} Bxg2 {[%emt 0:00:24]} 26. Kxg2 {[%emt 0:00:
05]} Re8 {[%emt 0:00:30]} 27. Qf3 {[%emt 0:00:53]} Bxe5 {[%emt 0:00:52]} 28.
Rb7 {[%emt 0:00:09]} Qc6 {[%emt 0:00:01]} 29. dxe5 {[%emt 0:00:31]} Qxf3+ {
[%emt 0:01:19]} 30. Kxf3 {[%emt 0:00:01]} a6 {[%emt 0:01:08]} 31. Re4 {[%emt 0:
00:01]} Rc5 {[%emt 0:00:16]} 32. Rf4 {[%emt 0:00:01]} Rf8 {[%emt 0:00:42]} 33.
Ra7 {[%emt 0:00:26]} Ra5 {[%emt 0:00:41]} 34. Rxc4 {[%emt 0:00:13]} Rxa2 {
[%emt 0:00:01]} 35. h4 {[%emt 0:00:08]} Re8 {[%emt 0:00:30]} 36. Rcc7 {[%emt 0:
00:03]} Ra1 {[%emt 0:00:01]} 37. Rc5 {[%emt 0:01:05]} h5 {[%emt 0:01:00]} 38.
c4 {[%emt 0:01:14]} Rf1+ {[%emt 0:00:58]} 39. Kg2 {[%emt 0:00:21]} Rf5 {[%emt
0:00:13]} 40. e6 {[%emt 0:00:57]} Rxc5 {[%emt 0:00:21]} 41. exf7+ {[%emt 0:00:
02]} Kf8 {[%emt 0:00:00]} 42. fxe8=Q+ {[%emt 0:00:02]} Kxe8 {[%emt 0:00:02]}
43. Rxg7 {[%emt 0:00:02]} a5 {[%emt 0:00:21]} 44. Ra7 {[%emt 0:00:13]} Rf5 {
[%emt 0:00:11]} 45. Kh3 {[%emt 0:02:54]} Rc5 {[%emt 0:00:09]} 46. Kh2 {[%emt 0:
00:01]} Re5 {[%emt 0:00:11]} 47. Kg1 {[%emt 0:00:15]} Rf5 {[%emt 0:00:07]} 48.
Kg2 {[%emt 0:00:01]} Kd8 {[%emt 0:00:11]} 49. Rg7 {[%emt 0:00:49]} Ke8 {[%emt
0:00:18]} 50. Rb7 {[%emt 0:01:56]} Kd8 {[%emt 0:00:08]} 51. Rh7 {[%emt 0:01:34]
} Ke8 {[%emt 0:00:08]} 52. Rg7 {[%emt 0:00:01]} Kf8 {[%emt 0:00:09]} 53. Rg5 {
[%emt 0:01:36]} Rxg5 {[%emt 0:00:10]} 54. hxg5 {[%emt 0:00:01]} a4 {[%emt 0:00:
01]} 55. c5 {[%emt 0:00:01]} a3 {[%emt 0:00:03]} 56. c6 {[%emt 0:00:01]} a2 {
[%emt 0:00:27]} 57. c7 {[%emt 0:00:00]} a1=Q {[%emt 0:00:02]} 58. c8=Q+ {[%emt
0:00:02]} Kg7 {[%emt 0:00:03]} 59. Qe8 {[%emt 0:00:05]} Qd1 {[%emt 0:00:34]}
60. Qe7+ {[%emt 0:00:46]} Kg8 {[%emt 0:00:06]} 61. Qe6+ {[%emt 0:00:12]} Kg7 {
[%emt 0:00:06]} 62. Qf6+ {[%emt 0:00:02]} Kg8 {[%emt 0:00:00]} 63. Qg6+ {[%emt
0:00:19]} Kf8 {[%emt 0:00:14]} 64. Qf5+ {[%emt 0:00:01]} Kg7 {[%emt 0:00:04]}
65. Qf4 {[%emt 0:01:14]} Qd5+ {[%emt 0:00:28]} 66. Kh2 {[%emt 0:00:02]} Qc6 {
[%emt 0:00:09]} 67. Qf5 {[%emt 0:00:10]} Qd6 {[%emt 0:00:13]} 68. Kh3 {[%emt 0:
00:11]} Qc6 {[%emt 0:00:01]} 69. Kh2 {[%emt 0:00:20]} Qd6 {[%emt 0:00:08]} 70.
Kh3 {[%emt 0:02:30]} Qc6 {[%emt 0:00:03]} 71. Qf1 {[%emt 0:00:01]} Kg6 {[%emt
0:00:20]} 72. g4 {[%emt 0:00:11]} hxg4+ {[%emt 0:00:16]} 73. Kh4 {[%emt 0:00:
01]} Qe6 {[%emt 0:00:12]} 74. Qd3+ {[%emt 0:00:32]} Qf5 {[%emt 0:00:04]} 75.
Qd6+ {[%emt 0:00:17]} Kg7 {[%emt 0:00:03]} 76. Qc7+ {[%emt 0:00:23]} Kg6 {
[%emt 0:00:09]} 77. Qc6+ {[%emt 0:00:01]} Kg7 {[%emt 0:00:05]} 78. Kh5 {[%emt
0:00:05]} g3 {[%emt 0:00:26]} 79. Qc3+ {[%emt 0:00:04]} Kf7 {[%emt 0:00:13]}
80. Qc7+ {[%emt 0:00:35]} Kg8 {[%emt 0:00:05]} 81. Qxg3 {[%emt 0:00:19]} Qh7+ {
[%emt 0:00:02]} 82. Kg4 {[%emt 0:00:01]} Qe4+ {[%emt 0:00:01]} 83. Qf4 {[%emt
0:00:01]} Qxf4+ {[%emt 0:00:02]} 84. Kxf4 {[%emt 0:00:02]} Kf7 {[%emt 0:00:01]}
85. Kf5 {[%emt 0:00:01]} Kg7 {[%emt 0:00:02]} 86. g6 {[%emt 0:00:00]} Kg8 {
[%emt 0:00:05]} 87. Kf6 {[%emt 0:00:01]} Kf8 {[%emt 0:00:02]} 88. g7+ {[%emt 0:
00:01]} Kg8 {[%emt 0:00:00]} 89. Kg6 {[%emt 0:00:01]} 1/2-1/2

[Event "Geneve Chess Masters 2013"]
[Site "Geneve"]
[Date "2013.06.26"]
[Round "1.1"]
[White "Kramnik, Vladimir"]
[Black "Mamedyarov, Shakhriyar"]
[Result "0-1"]
[ECO "A05"]
[WhiteElo "2803"]
[BlackElo "2753"]
[Annotator "Robot 3"]
[PlyCount "134"]
[EventDate "2013.??.??"]
[EventCountry "SUI"]
[TimeControl "1500+10"]

1. Nf3 {[%emt 0:00:00]} Nf6 {[%emt 0:00:00]} 2. c4 {[%emt 0:00:00]} g6 {[%emt
0:00:00]} 3. g3 {[%emt 0:00:00]} Bg7 {[%emt 0:00:00]} 4. Bg2 {[%emt 0:00:00]}
O-O {[%emt 0:00:07]} 5. O-O {[%emt 0:00:02]} d6 {[%emt 0:00:09]} 6. Nc3 {[%emt
0:00:06]} e5 {[%emt 0:00:02]} 7. d4 {[%emt 0:00:19]} Nbd7 {[%emt 0:00:01]} 8.
b3 {[%emt 0:00:01]} Re8 {[%emt 0:00:02]} 9. e4 {[%emt 0:00:02]} exd4 {[%emt 0:
00:12]} 10. Nxd4 {[%emt 0:00:02]} a6 {[%emt 0:00:01]} 11. Be3 {[%emt 0:00:54]}
Rb8 {[%emt 0:00:04]} 12. Qd2 {[%emt 0:00:38]} c5 {[%emt 0:00:26]} 13. Nde2 {
[%emt 0:00:31]} b5 {[%emt 0:00:03]} 14. Qxd6 {[%emt 0:04:54]} Ng4 {[%emt 0:03:
33]} 15. Bf4 {[%emt 0:00:52]} bxc4 {[%emt 0:00:06]} 16. Rad1 {[%emt 0:00:41]}
Qa5 {[%emt 0:01:07]} 17. Nd5 {[%emt 0:02:24]} cxb3 {[%emt 0:05:38]} 18. axb3 {
[%emt 0:00:44]} Nge5 {[%emt 0:02:17]} 19. Ne7+ {[%emt 0:02:11]} Kh8 {[%emt 0:
00:29]} 20. Nxc8 {[%emt 0:03:11]} Rbxc8 {[%emt 0:00:02]} 21. Nc1 {[%emt 0:01:
17]} Rc6 {[%emt 0:00:44]} 22. Qd2 {[%emt 0:01:04]} Qxd2 {[%emt 0:01:02]} 23.
Rxd2 {[%emt 0:00:02]} c4 {[%emt 0:00:16]} 24. bxc4 {[%emt 0:00:05]} Nb6 {[%emt
0:00:56]} 25. Rfd1 {[%emt 0:00:17]} Nexc4 {[%emt 0:00:27]} 26. Ra2 {[%emt 0:01:
31]} a5 {[%emt 0:00:04]} 27. Nd3 {[%emt 0:00:34]} h6 {[%emt 0:00:39]} 28. h4 {
[%emt 0:00:17]} Rd8 {[%emt 0:00:03]} 29. Bf1 {[%emt 0:00:03]} a4 {[%emt 0:00:
59]} 30. Rb1 {[%emt 0:00:03]} Rcc8 {[%emt 0:02:59]} 31. Rb5 {[%emt 0:01:27]} a3
{[%emt 0:00:22]} 32. Bc1 {[%emt 0:00:17]} Na4 {[%emt 0:00:11]} 33. Rb7 {[%emt
0:01:54]} Kg8 {[%emt 0:04:08]} 34. Bxa3 {[%emt 0:02:29]} Nc3 {[%emt 0:00:06]}
35. Ra1 {[%emt 0:00:30]} Ne2+ {[%emt 0:01:17]} 36. Bxe2 {[%emt 0:00:02]} Bxa1 {
[%emt 0:00:01]} 37. Be7 {[%emt 0:00:46]} Re8 {[%emt 0:00:01]} 38. Nf4 {[%emt 0:
00:21]} Na5 {[%emt 0:01:01]} 39. Rd7 {[%emt 0:00:01]} Rc1+ {[%emt 0:00:16]} 40.
Kg2 {[%emt 0:00:03]} Nc6 {[%emt 0:00:01]} 41. Bd6 {[%emt 0:00:40]} Kg7 {[%emt
0:00:34]} 42. Bg4 {[%emt 0:00:16]} Nd4 {[%emt 0:00:34]} 43. e5 {[%emt 0:00:12]}
Nb5 {[%emt 0:00:43]} 44. Be6 {[%emt 0:00:17]} Nxd6 {[%emt 0:00:13]} 45. exd6 {
[%emt 0:00:01]} Rf8 {[%emt 0:00:02]} 46. Bd5 {[%emt 0:00:02]} Kf6 {[%emt 0:00:
03]} 47. Bb3 {[%emt 0:00:24]} Rc6 {[%emt 0:00:17]} 48. Nd5+ {[%emt 0:00:06]}
Ke5 {[%emt 0:00:04]} 49. Ra7 {[%emt 0:00:04]} Bd4 {[%emt 0:00:04]} 50. Re7+ {
[%emt 0:00:17]} Kxd6 {[%emt 0:00:02]} 51. Rb7 {[%emt 0:00:01]} g5 {[%emt 0:00:
33]} 52. hxg5 {[%emt 0:00:04]} hxg5 {[%emt 0:00:01]} 53. g4 {[%emt 0:00:26]}
Rc1 {[%emt 0:00:28]} 54. Ne7 {[%emt 0:00:08]} Ke5 {[%emt 0:00:05]} 55. Nf5 {
[%emt 0:00:12]} Bc5 {[%emt 0:00:08]} 56. Kg3 {[%emt 0:00:14]} Rd8 {[%emt 0:00:
11]} 57. Bxf7 {[%emt 0:00:14]} Rd3+ {[%emt 0:00:07]} 58. Ne3 {[%emt 0:00:09]}
Bxe3 59. fxe3 Rxe3+ {[%emt 0:00:16]} 60. Kf2 {[%emt 0:00:01]} Kf4 {[%emt 0:00:
21]} 61. Bg6 {[%emt 0:00:11]} Rf3+ {[%emt 0:00:15]} 62. Ke2 {[%emt 0:00:01]}
Rcc3 {[%emt 0:00:09]} 63. Rb4+ {[%emt 0:00:19]} Kg3 {[%emt 0:00:01]} 64. Bf5 {
[%emt 0:00:22]} Rf2+ 65. Kd1 Ra3 {[%emt 0:00:06]} 66. Ke1 {[%emt 0:00:05]} Ra1+
{[%emt 0:00:04]} 67. Bb1 {[%emt 0:00:05]} Kg2 {[%emt 0:00:03]} 0-1

[Event "Geneve Chess Masters 2013"]
[Site "Geneve"]
[Date "2013.06.26"]
[Round "1"]
[White "Mamedyarov, Shakhriyar"]
[Black "Kramnik, Vladimir"]
[Result "1/2-1/2"]
[ECO "E32"]
[WhiteElo "2753"]
[BlackElo "2803"]
[Annotator "Robot 3"]
[PlyCount "98"]
[EventDate "2013.??.??"]
[EventCountry "SUI"]
[TimeControl "1500+10"]

1. d4 {[%emt 0:00:00]} Nf6 {[%emt 0:00:00]} 2. c4 {[%emt 0:00:00]} e6 {[%emt 0:
00:00]} 3. Nc3 {[%emt 0:00:00]} Bb4 {[%emt 0:00:00]} 4. Qc2 {[%emt 0:00:00]}
O-O {[%emt 0:00:04]} 5. a3 {[%emt 0:00:02]} Bxc3+ {[%emt 0:00:01]} 6. Qxc3 {
[%emt 0:00:01]} d5 {[%emt 0:00:02]} 7. Nf3 {[%emt 0:00:07]} dxc4 {[%emt 0:00:
04]} 8. Qxc4 {[%emt 0:00:02]} b6 {[%emt 0:00:02]} 9. Bg5 {[%emt 0:00:06]} Ba6 {
[%emt 0:00:03]} 10. Qa4 {[%emt 0:00:03]} Qd7 {[%emt 0:00:11]} 11. Qc2 {[%emt 0:
00:11]} c5 {[%emt 0:00:09]} 12. dxc5 {[%emt 0:00:03]} Rc8 {[%emt 0:00:19]} 13.
Rd1 {[%emt 0:00:03]} Qe7 {[%emt 0:00:17]} 14. e4 {[%emt 0:00:03]} Bxf1 {[%emt
0:00:08]} 15. Rxf1 {[%emt 0:00:08]} h6 {[%emt 0:00:05]} 16. Bh4 {[%emt 0:07:02]
} Rxc5 {[%emt 0:00:08]} 17. Qe2 {[%emt 0:00:02]} e5 {[%emt 0:01:02]} 18. Bxf6 {
[%emt 0:02:32]} Qxf6 {[%emt 0:00:05]} 19. Qd3 {[%emt 0:00:03]} Qc6 {[%emt 0:06:
25]} 20. Ng1 {[%emt 0:05:52]} Rc1 {[%emt 0:03:28]} 21. Ne2 {[%emt 0:00:32]}
Rxd1+ {[%emt 0:00:02]} 22. Kxd1 {[%emt 0:00:01]} Na6 {[%emt 0:00:36]} 23. Qxa6
{[%emt 0:00:50]} Rd8+ {[%emt 0:00:02]} 24. Ke1 {[%emt 0:00:02]} Qc2 {[%emt 0:
00:02]} 25. f3 {[%emt 0:00:17]} Rd1+ {[%emt 0:00:02]} 26. Kf2 {[%emt 0:00:00]}
Qc5+ {[%emt 0:00:01]} 27. Nd4 {[%emt 0:00:02]} Rxd4 {[%emt 0:00:59]} 28. Kg3 {
[%emt 0:00:02]} Rd2 {[%emt 0:02:55]} 29. b4 {[%emt 0:01:18]} Qc6 {[%emt 0:00:
42]} 30. Rg1 {[%emt 0:01:00]} Qg6+ {[%emt 0:03:03]} 31. Kh3 {[%emt 0:00:01]}
Qe6+ {[%emt 0:01:19]} 32. Kg3 {[%emt 0:00:03]} Qg6+ {[%emt 0:01:59]} 33. Kh3 {
[%emt 0:00:01]} Qh5+ {[%emt 0:00:38]} 34. Kg3 {[%emt 0:00:02]} Qg5+ {[%emt 0:
00:16]} 35. Kh3 {[%emt 0:00:02]} Qe7 {[%emt 0:01:57]} 36. Kg3 {[%emt 0:01:52]}
Kh7 {[%emt 0:00:38]} 37. h3 {[%emt 0:00:10]} Ra2 {[%emt 0:00:26]} 38. Qd3 {
[%emt 0:02:40]} a5 {[%emt 0:00:11]} 39. Qb3 {[%emt 0:00:11]} Rd2 {[%emt 0:00:
21]} 40. Qc3 {[%emt 0:00:08]} Ra2 {[%emt 0:01:17]} 41. Qb3 {[%emt 0:00:08]} Rd2
{[%emt 0:00:41]} 42. Qc3 {[%emt 0:00:02]} Qg5+ {[%emt 0:00:40]} 43. Kh2 {[%emt
0:00:01]} axb4 {[%emt 0:00:01]} 44. Qxb4 {[%emt 0:00:25]} Qe3 {[%emt 0:00:03]}
45. Kh1 {[%emt 0:00:03]} f6 {[%emt 0:00:15]} 46. Qe7 {[%emt 0:00:16]} Qb3 {
[%emt 0:00:16]} 47. Qf8 {[%emt 0:00:41]} Rc2 {[%emt 0:00:24]} 48. Qd6 {[%emt 0:
00:06]} Ra2 {[%emt 0:00:21]} 49. Qd7 {[%emt 0:00:07]} Qxa3 {[%emt 0:00:07]}
1/2-1/2

[Event "Geneve Chess Masters 2013"]
[Site "Geneve"]
[Date "2013.06.26"]
[Round "1.3"]
[White "Nakamura, Hikaru"]
[Black "Edouard, Romain"]
[Result "1-0"]
[ECO "C15"]
[WhiteElo "2784"]
[BlackElo "2666"]
[Annotator "Robot 3"]
[PlyCount "65"]
[EventDate "2013.??.??"]
[EventCountry "SUI"]
[TimeControl "1500+10"]

1. d4 {[%emt 0:21:06]} e6 {[%emt 0:21:07]} 2. e4 {[%emt 0:00:09]} d5 {[%emt 0:
00:09]} 3. Nc3 {[%emt 0:00:09]} Bb4 {[%emt 0:00:09]} 4. exd5 {[%emt 0:00:10]}
exd5 {[%emt 0:00:09]} 5. Bd3 {[%emt 0:00:09]} c6 {[%emt 0:00:21]} 6. a3 {[%emt
0:00:10]} Bd6 {[%emt 0:00:10]} 7. Nge2 {[%emt 0:00:14]} Nf6 {[%emt 0:00:20]} 8.
O-O {[%emt 0:00:14]} O-O {[%emt 0:00:15]} 9. Ng3 {[%emt 0:00:10]} Re8 {[%emt 0:
00:27]} 10. Nf5 {[%emt 0:00:14]} Bxf5 {[%emt 0:00:20]} 11. Bxf5 {[%emt 0:00:09]
} Nbd7 {[%emt 0:00:27]} 12. Qf3 {[%emt 0:00:11]} Qc7 {[%emt 0:00:27]} 13. g3 {
[%emt 0:00:10]} Nf8 {[%emt 0:00:21]} 14. Bg5 {[%emt 0:00:23]} N6d7 {[%emt 0:00:
09]} 15. Rad1 {[%emt 0:00:10]} Ne6 {[%emt 0:00:11]} 16. Bc1 {[%emt 0:00:12]}
Qb6 {[%emt 0:00:17]} 17. h4 {[%emt 0:00:12]} Ndf8 {[%emt 0:00:12]} 18. Ne2 {
[%emt 0:00:10]} Qd8 {[%emt 0:00:19]} 19. c3 {[%emt 0:00:17]} Qf6 {[%emt 0:00:
09]} 20. Qd3 {[%emt 0:00:09]} g6 {[%emt 0:00:32]} 21. Bh3 {[%emt 0:00:10]} Qg7
{[%emt 0:00:14]} 22. Kg2 {[%emt 0:00:12]} Nd7 {[%emt 0:00:13]} 23. Ng1 {[%emt
0:00:14]} Nf6 {[%emt 0:00:12]} 24. Nf3 {[%emt 0:00:20]} Ne4 {[%emt 0:00:18]}
25. c4 {[%emt 0:00:09]} Re7 {[%emt 0:00:40]} 26. cxd5 {[%emt 0:00:12]} cxd5 {
[%emt 0:00:09]} 27. Qb3 {[%emt 0:00:09]} Nf6 {[%emt 0:00:22]} 28. Rfe1 {[%emt
0:00:14]} Rae8 {[%emt 0:00:12]} 29. Re3 {[%emt 0:00:17]} b6 {[%emt 0:00:14]}
30. Rde1 {[%emt 0:00:09]} Nc7 {[%emt 0:00:23]} 31. Rxe7 {[%emt 0:00:15]} Rxe7 {
[%emt 0:00:11]} 32. Rxe7 {[%emt 0:00:09]} Bxe7 {[%emt 0:00:09]} 33. Qa4 {[%emt
0:00:09]} 1-0